fUSD/lending_fUSD_20241021
["ID","MTS","AMOUNT","RATE_DAILY","PERIOD"]
[340624719,1729549844161,-397.20548306,0.00047671,120]
[340624720,1729549844172,-108.59044338,0.00047671,120]
[340624721,1729549844181,-500.0,0.00047671,120]
[340624722,1729549844190,-240.29715775,0.00047671,120]
[340624723,1729549844199,-31.23239887,0.00047671,120]
[340624724,1729549844215,-468.76760113,0.00047671,120]
[340624725,1729549844224,-264.03274092,0.00047671,120]
[340624726,1729549844234,-275.60781026,0.00047671,120]
[340624727,1729549844244,-501.84148542,0.00047671,120]
[340624728,1729549844253,-411.70326927,0.00047671,120]
[340624729,1729549844266,-88.29673073,0.00047671,120]
[340624730,1729549844387,-500.0,0.00047671,120]
[340624731,1729549844398,-500.0,0.00047671,120]
[340624732,1729549844408,-500.0,0.00047671,120]
[340624733,1729549844418,-500.0,0.00047671,120]
[340624734,1729549844429,-515.31120146,0.00047671,120]
[340624735,1729549844438,-500.0,0.00047671,120]
[340624736,1729549844447,-500.0,0.00047671,120]
[340624737,1729549844456,-500.0,0.00047671,120]
[340624738,1729549844466,-500.0,0.00047671,120]
[340624739,1729549844475,-509.53153584,0.00047671,120]
[340624740,1729549844484,-500.0,0.00047671,120]
[340624741,1729549844495,-482.11944766,0.00047671,16]
[340624742,1729549844504,-500.0,0.00047671,120]
[340624743,1729549844513,-317.16612132,0.00047671,120]
[340624744,1729549844523,-1000.0,0.00047671,120]
[340624745,1729549844532,-500.0,0.00047671,120]
[340624746,1729549844542,-500.0,0.00047671,120]
[340624747,1729549844552,-502.0190816,0.00047671,60]
[340624748,1729549844563,-500.0,0.00047671,120]
[340624749,1729549844573,-472.83985756,0.00047671,120]
[340624750,1729549844583,-500.0,0.00047671,7]
[340624751,1729549844592,-2568.97,0.00047671,120]
[340624752,1729549844602,-500.0,0.00047671,120]
[340624753,1729549844611,-3324.09,0.00047671,120]
[340624754,1729549844620,-1388.03,0.00047671,120]
[340624755,1729549844630,-528.04568364,0.00047671,120]
[340624756,1729549844640,-500.0,0.00047671,120]
[340624757,1729549844649,-333.31162674,0.00047671,120]
[340624758,1729549844659,-477.0107986,0.00047671,120]
[340624759,1729549844668,-500.0,0.00047671,120]
[340624760,1729549844678,-381.42889997,0.00047671,120]
[340624761,1729549844687,-500.0,0.00047671,120]
[340624762,1729549844697,-500.0,0.00047671,120]
[340624763,1729549844707,-500.0,0.00047671,120]
[340624764,1729549844716,-3818.43,0.00047671,120]
[340624765,1729549844727,-324.98884402,0.00047671,120]
[340624766,1729549844737,-500.0,0.00047671,120]
[340624767,1729549844748,-500.0,0.00047671,120]
[340624768,1729549844758,-500.0,0.00047671,120]
[340624769,1729549844768,-234.71309396,0.00047671,120]
[340624770,1729549844780,-265.28690604,0.00047671,120]
[340624771,1729549844790,-500.0,0.00047671,120]
[340624772,1729549844800,-500.0,0.00047671,120]
[340624773,1729549844810,-2116.24,0.00047671,120]
[340624774,1729549844820,-2335.89,0.00047671,120]
[340624775,1729549844829,-528.82364703,0.00047671,120]
[340624776,1729549844839,-500.0,0.00047671,120]
[340624777,1729549844849,-9.86159628,0.00047671,120]
[340624778,1729549844860,-434.32844523,0.00047671,120]
[340624779,1729549844871,-55.80995849,0.00047671,120]
[340624780,1729549844880,-500.0,0.00047671,120]
[340624781,1729549844890,-500.0,0.00047671,120]
[340624782,1729549844899,-532.80686677,0.00047671,120]
[340624783,1729549844910,-467.85261712,0.00047671,120]
[340624784,1729549844922,-38.84655174,0.00047671,120]
[340624785,1729549844931,-500.0,0.00047671,120]
[340624786,1729549844942,-500.0,0.00047671,120]
[340624787,1729549844952,-500.0,0.00047671,120]
[340624788,1729549844962,-502.08349207,0.00047671,120]
[340624789,1729549844971,-700.0,0.00047671,120]
[340624790,1729549844981,-501.2832659,0.00047671,120]
[340624791,1729549844990,-500.0,0.00047671,120]
[340624792,1729549845000,-13.26024045,0.00047671,120]
[340624793,1729549845012,-486.73975955,0.00047671,120]
[340624794,1729549845022,-500.0,0.00047671,120]
[340624795,1729549845032,-500.0,0.00047671,120]
[340624796,1729549845041,-225.68054611,0.00047671,120]
[340624797,1729549845050,-500.0,0.00047671,120]
[340624798,1729549845060,-500.0,0.00047671,120]
[340624799,1729549845069,-500.0,0.00047671,120]
[340624800,1729549845078,-500.00000001,0.00047671,120]
[340624801,1729549845087,-500.0,0.00047671,120]
[340624802,1729549845097,-500.0,0.00047671,120]
[340624803,1729549845107,-224.07139183,0.00047671,120]
[340624804,1729549845118,-288.58860817,0.00047671,120]
[340624805,1729549845128,-504.56783957,0.00047671,120]
[340624806,1729549845138,-500.0,0.00047671,120]
[340624807,1729549845148,-500.0,0.00047671,14]
[340624808,1729549845158,-93.72355226,0.00047671,120]
[340624809,1729549845170,-406.27644774,0.00047671,120]
[340624810,1729549845180,-500.0,0.00047671,120]
[340624811,1729549845189,-35.15386545,0.00047671,120]
[340624812,1729549845218,-464.84613455,0.00047671,120]
[340624813,1729549845225,-66.0192205,0.00047671,120]
[340624814,1729549845263,-299.34501352,0.00047671,120]
[340624815,1729549845274,-153.92777747,0.00047671,120]
[340624816,1729549845281,-500.0,0.00047671,120]
[340624817,1729549845289,-500.0,0.00047671,120]
[340624818,1729549845296,-444.63242726,0.00047671,120]
[340624819,1729549845303,-500.0,0.00047671,120]
[340624820,1729549845310,-500.0,0.00047671,120]
[340624821,1729549845317,-500.0,0.00047671,120]
[340624822,1729549845324,-528.88259228,0.00047671,120]
[340624823,1729549845331,-1442.26,0.00047671,120]
[340624824,1729549845338,-500.0,0.00047671,120]
[340624825,1729549845347,-500.0,0.00047671,120]
[340624826,1729549845354,-500.0,0.00047671,120]
[340624827,1729549845362,-500.0,0.00047671,120]
[340624828,1729549845369,-500.0,0.00047671,120]
[340624829,1729549845376,-500.0,0.00047671,120]
[340624830,1729549845383,-771.58,0.00047671,120]
[340624831,1729549845389,-500.0,0.00047671,120]
[340624832,1729549845396,-500.0,0.00047671,120]
[340624833,1729549845403,-500.0,0.00047671,120]
[340624834,1729549845410,-500.0,0.00047671,120]
[340624835,1729549845416,-2241.71,0.00047671,120]
[340624836,1729549845424,-500.0,0.00047671,120]
[340624837,1729549845432,-2869.09,0.00047671,120]
[340624838,1729549845440,-500.0,0.00047671,120]
[340624839,1729549845447,-2686.99,0.00047671,120]
[340624840,1729549845454,-196.18,0.00047671,120]
[340624841,1729549845461,-3174.8,0.00047671,120]
[340624842,1729549845468,-2210.06,0.00047671,120]
[340624843,1729549845474,-387.89475111,0.00047671,120]
[340624844,1729549845481,-614.94,0.00047671,60]
[340624845,1729549845489,-500.0,0.00047671,120]
[340624846,1729549845499,-500.0,0.00047671,120]
[340624847,1729549845508,-3243.57,0.00047671,120]
[340624848,1729549845518,-500.0,0.00047671,120]
[340624849,1729549845527,-500.0,0.00047671,120]
[340624850,1729549845537,-500.0,0.00047671,120]
[340624851,1729549845546,-2536.43,0.00047671,120]
[340624852,1729549845556,-500.0,0.00047671,120]
[340624853,1729549845565,-500.0,0.00047671,120]
[340624854,1729549845575,-500.0,0.00047671,120]
[340624855,1729549845585,-233.31396391,0.00047671,30]
[340624856,1729549845598,-500.0,0.00047671,120]
[340624857,1729549845613,-500.0,0.00047671,120]
[340624858,1729549845625,-500.0,0.00047671,120]
[340624859,1729549845638,-533.08,0.00047671,120]
[340624860,1729549845650,-500.0,0.00047671,120]
[340624861,1729549845661,-500.0,0.00047671,120]
[340624862,1729549845672,-500.0,0.00047671,120]
[340624863,1729549845684,-3022.02,0.00047671,120]
[340624864,1729549845696,-349.66311651,0.00047671,120]
[340624865,1729549845707,-636.71308687,0.00047671,120]
[340624866,1729549845718,-503.23,0.00047671,120]
[340624867,1729549845730,-500.0,0.00047671,120]
[340624868,1729549845743,-500.0,0.00047671,120]
[340624869,1729549845754,-500.0,0.00047671,120]
[340624870,1729549845766,-500.0,0.00047671,120]
[340624871,1729549845777,-2509.67,0.00047671,120]
[340624872,1729549845790,-500.0,0.00047671,120]
[340624873,1729549845802,-621.72,0.00047671,120]
[340624874,1729549845813,-500.0,0.00047671,120]
[340624875,1729549845824,-500.0,0.00047671,120]
[340624876,1729549845835,-500.0,0.00047671,120]
[340624877,1729549845847,-500.0,0.00047671,120]
[340624878,1729549845858,-281.11302402,0.00047671,120]
[340624879,1729549845871,-500.0,0.00047671,120]
[340624880,1729549845883,-643.67,0.00047671,120]
[340624881,1729549845896,-500.0,0.00047671,120]
[340624882,1729549845909,-500.0,0.00047671,120]
[340624883,1729549845920,-502.13,0.00047671,120]
[340624884,1729549845931,-500.0,0.00047671,120]
[340624885,1729549845941,-546.78,0.00047671,120]
[340624886,1729549845951,-500.0,0.00047671,120]
[340624887,1729549845963,-500.0,0.00047671,120]
[340624888,1729549845972,-500.0,0.00047671,120]
[340624889,1729549845985,-500.0,0.00047671,120]
[340624890,1729549845997,-552.33345679,0.00047671,120]
[340624891,1729549846008,-634.88162733,0.00047671,120]
[340624892,1729549846020,-500.0,0.00047671,120]
[340624893,1729549846031,-500.0,0.00047671,120]
[340624894,1729549846044,-500.0,0.00047671,120]
[340624895,1729549846058,-500.0,0.00047671,120]
[340624896,1729549846069,-500.0,0.00047671,120]
[340624897,1729549846082,-500.0,0.00047671,120]
[340624898,1729549846093,-500.0,0.00047671,120]
[340624899,1729549846103,-496.89091907,0.00047676,30]
[340624900,1729549846113,-229.44674857,0.00047676,30]
[340624901,1729549846123,-150.0,0.00047687,30]
[340624903,1729549846133,-150.0,0.00047688,30]
[340624904,1729549846144,-496.89091907,0.00047691,30]
[340624905,1729549846155,-229.44674857,0.00047691,30]
[340624906,1729549846167,-150.0,0.00047695,30]
[340624907,1729549846178,-496.89091907,0.00047706,30]
[340624908,1729549846190,-229.44674857,0.00047706,30]
[340624909,1729549846200,-150.0,0.00047713,30]
[340624910,1729549846212,-150.0,0.00047713,30]
[340624911,1729549846226,-400.0,0.00047714,10]
[340624912,1729549846237,-400.0,0.00047714,10]
[340624913,1729549846249,-400.0,0.00047714,10]
[340624914,1729549846261,-400.0,0.00047714,10]
[340624915,1729549846272,-2096.1663975,0.00047717,120]
[340624916,1729549846283,-496.89091907,0.0004772,30]
[340624917,1729549846294,-229.44674857,0.0004772,30]
[340624918,1729549846305,-150.0,0.00047732,30]
[340624919,1729549846314,-496.89091907,0.00047735,30]
[340624920,1729549846325,-229.44674857,0.00047735,30]
[340624921,1729549846335,-150.0,0.00047738,30]
[340624922,1729549846346,-150.0,0.00047739,30]
[340624923,1729549846356,-496.89091907,0.0004775,30]
[340624924,1729549846366,-229.44674857,0.0004775,30]
[340624925,1729549846377,-1709.8885,0.0004776,2]
[340624926,1729549846388,-496.89091907,0.00047765,30]
[340624927,1729549846398,-229.44674857,0.00047765,30]
[340624928,1729549846408,-150.0,0.00047765,30]
[340624929,1729549846418,-150.0,0.00047769,30]
[340624930,1729549846429,-150.0,0.00047769,30]
[340624931,1729549846439,-200.0,0.00047774,60]
[340624932,1729549846450,-496.89091907,0.00047779,30]
[340624933,1729549846460,-229.44674857,0.00047779,30]
[340624934,1729549846470,-1797.121011,0.0004778,22]
[340624935,1729549846481,-200.0,0.00047784,60]
[340624936,1729549846492,-150.0,0.00047788,30]
[340624937,1729549846502,-200.0,0.00047791,60]
[340624938,1729549846513,-150.0,0.00047791,30]
[340624939,1729549846523,-150.0,0.00047794,30]
[340624940,1729549846534,-496.89091907,0.00047794,30]
[340624941,1729549846544,-229.44674857,0.00047794,30]
[340624942,1729549846555,-1000.0,0.000478,22]
[340624943,1729549846565,-218.63,0.000478,42]
[340624944,1729549846576,-218.63,0.000478,42]
[340624945,1729549846586,-200.0,0.00047806,60]
[340624946,1729549846596,-150.0,0.00047806,30]
[340624947,1729549846606,-496.89091907,0.00047809,30]
[340624948,1729549846616,-229.44674857,0.00047809,30]
[340624949,1729549846627,-150.0,0.00047817,30]
[340624950,1729549846636,-1000.0,0.0004782,22]
[340624951,1729549846647,-496.89091907,0.00047823,30]
[340624952,1729549846658,-229.44674857,0.00047823,30]
[340624953,1729549846669,-150.0,0.00047825,30]
[340624954,1729549846679,-496.89091907,0.00047838,30]
[340624955,1729549846690,-229.44674857,0.00047838,30]
[340624956,1729549846701,-150.0,0.00047838,30]
[340624957,1729549846711,-400.0,0.00047839,10]
[340624958,1729549846722,-400.0,0.00047839,10]
[340624959,1729549846732,-400.0,0.00047839,10]
[340624960,1729549846743,-539.57742686,0.00047839,10]
[340624961,1729549846754,-1000.0,0.0004784,22]
[340624963,1729549846765,-150.0,0.00047843,30]
[340624965,1729549846775,-150.0,0.00047844,30]
[340624967,1729549846787,-496.89091907,0.00047853,30]
[340624969,1729549846797,-229.44674857,0.00047853,30]
[340624971,1729549846807,-1000.0,0.0004786,22]
[340624973,1729549846816,-496.89091907,0.00047867,30]
[340624975,1729549846826,-229.44674857,0.00047867,30]
[340624977,1729549846835,-200.0,0.00047868,60]
[340624979,1729549846845,-150.0,0.00047869,30]
[340624981,1729549846854,-1000.0,0.0004788,22]
[340624983,1729549846863,-150.0,0.00047881,30]
[340624985,1729549846873,-150.0,0.00047881,30]
[340624987,1729549846882,-496.89091907,0.00047882,30]
[340624989,1729549846892,-229.44674857,0.00047882,30]
[340624991,1729549846901,-150.0,0.00047889,30]
[340624993,1729549846910,-150.0,0.00047895,30]
[340624995,1729549846919,-496.89091907,0.00047897,30]
[340624996,1729549846929,-229.44674857,0.00047897,30]
[340624997,1729549846938,-565.93218248,0.000479,120]
[340624998,1729549846947,-162.9367521,0.000479,30]
[340624999,1729549846956,-158.33567086,0.000479,23]
[340625000,1729549846966,-4378.30975742,0.000479,120]
[340625001,1729549846975,-218.7681429,0.000479,28]
[340625002,1729549846985,-1000.0,0.000479,22]
[340625003,1729549846995,-200.0,0.00047907,60]
[340625004,1729549847004,-496.89091907,0.00047911,30]
[340625005,1729549847013,-229.44674857,0.00047911,30]
[340625006,1729549847172,-150.0,0.00047918,30]
[340625007,1729549847186,-1000.0,0.0004792,22]
[340625008,1729549847196,-150.0,0.00047921,30]
[340625009,1729549847205,-496.89091907,0.00047926,30]
[340625010,1729549847213,-229.44674857,0.00047926,30]
[340625011,1729549847223,-4378.3097574,0.00047928,120]
[340625012,1729549847232,-150.0,0.00047937,30]
[340625013,1729549847241,-150.0,0.00047939,30]
[340625014,1729549847251,-1000.0,0.0004794,22]
[340625015,1729549847260,-1315.707003,0.0004794,22]
[340625016,1729549847269,-496.89091907,0.00047941,30]
[340625017,1729549847278,-229.44674857,0.00047941,30]
[340625018,1729549847287,-400.0,0.00047944,10]
[340625019,1729549847296,-400.0,0.00047944,10]
[340625020,1729549847306,-400.0,0.00047944,10]
[340625021,1729549847314,-164.29932081,0.00047945,120]
[340625022,1729549847324,-478.12016457,0.00047945,120]
[340625023,1729549847333,-500.0,0.00047945,120]
[340625024,1729549847342,-2855.23713233,0.00047945,120]
[340625025,1729549847351,-500.0,0.00047945,120]
[340625026,1729549847360,-500.0,0.00047945,120]
[340625027,1729549847369,-500.0,0.00047945,120]
[340625028,1729549847378,-500.0,0.00047945,120]
[340625029,1729549847387,-500.0,0.00047945,120]
[340625030,1729549847396,-500.0,0.00047945,120]
[340625031,1729549847405,-500.0,0.00047945,120]
[340625032,1729549847418,-500.0,0.00047945,120]
[340625033,1729549847427,-510.44640258,0.00047945,120]
[340625034,1729549847436,-1000.0,0.00047945,120]
[340625035,1729549847446,-197.01,0.00047945,120]
[340625036,1729549847455,-500.0,0.00047945,120]
[340625037,1729549847464,-215.45873357,0.00047945,120]
[340625038,1729549847473,-500.0,0.00047945,7]
[340625039,1729549847483,-2568.97,0.00047945,120]
[340625040,1729549847492,-500.0,0.00047945,120]
[340625041,1729549847502,-3324.09,0.00047945,120]
[340625042,1729549847511,-1388.03,0.00047945,120]
[340625043,1729549847520,-208.89012545,0.00047945,120]
[340625044,1729549847529,-500.0,0.00047945,120]
[340625045,1729549847538,-500.0,0.00047945,120]
[340625046,1729549847547,-578.19940149,0.00047945,120]
[340625047,1729549847556,-3818.43,0.00047945,120]
[340625048,1729549847566,-500.0,0.00047945,120]
[340625049,1729549847575,-500.0,0.00047945,120]
[340625050,1729549847584,-500.0,0.00047945,120]
[340625051,1729549847593,-500.0,0.00047945,120]
[340625052,1729549847602,-500.0,0.00047945,120]
[340625053,1729549847611,-2116.24,0.00047945,120]
[340625054,1729549847620,-2335.89,0.00047945,120]
[340625055,1729549847629,-500.0,0.00047945,120]
[340625056,1729549847639,-343.23,0.00047945,120]
[340625057,1729549847648,-567.17240288,0.00047945,120]
[340625058,1729549847657,-500.0,0.00047945,120]
[340625059,1729549847666,-500.0,0.00047945,120]
[340625060,1729549847675,-500.0,0.00047945,120]
[340625061,1729549847684,-500.0,0.00047945,120]
[340625062,1729549847693,-500.0,0.00047945,120]
[340625063,1729549847702,-500.0,0.00047945,120]
[340625064,1729549847712,-500.0,0.00047945,120]
[340625065,1729549847722,-500.0,0.00047945,120]
[340625066,1729549847731,-437.07908998,0.00047945,120]
[340625067,1729549847740,-500.0,0.00047945,14]
[340625068,1729549847751,-200.0,0.00047945,120]
[340625069,1729549847760,-500.0,0.00047945,120]
[340625070,1729549847769,-500.0,0.00047945,120]
[340625071,1729549847779,-500.0,0.00047945,120]
[340625072,1729549847789,-2467.58997701,0.00047945,120]
[340625073,1729549847798,-500.0,0.00047945,120]
[340625074,1729549847808,-500.0,0.00047945,120]
[340625075,1729549847818,-500.0,0.00047945,120]
[340625076,1729549847827,-1442.26,0.00047945,120]
[340625077,1729549847836,-235.61,0.00047945,120]
[340625078,1729549847846,-500.0,0.00047945,120]
[340625079,1729549847855,-500.0,0.00047945,120]
[340625080,1729549847865,-771.58,0.00047945,120]
[340625081,1729549847874,-500.0,0.00047945,120]
[340625082,1729549847883,-500.0,0.00047945,120]
[340625083,1729549847893,-604.30259784,0.00047945,120]
[340625084,1729549847903,-500.0,0.00047945,120]
[340625085,1729549847914,-2241.71,0.00047945,120]
[340625086,1729549847923,-500.0,0.00047945,120]
[340625087,1729549847933,-2869.09,0.00047945,120]
[340625088,1729549847942,-192.16090364,0.00047945,120]
[340625089,1729549847951,-2686.99,0.00047945,120]
[340625090,1729549847960,-3174.8,0.00047945,120]
[340625091,1729549847970,-2210.06,0.00047945,120]
[340625092,1729549847980,-614.94,0.00047945,60]
[340625093,1729549847989,-500.0,0.00047945,120]
[340625094,1729549847998,-500.0,0.00047945,120]
[340625095,1729549848007,-3243.57,0.00047945,120]
[340625096,1729549848016,-647.64966326,0.00047945,120]
[340625097,1729549848026,-500.0,0.00047945,120]
[340625098,1729549848035,-500.0,0.00047945,120]
[340625099,1729549848044,-2536.43,0.00047945,120]
[340625100,1729549848054,-500.0,0.00047945,120]
[340625101,1729549848063,-70.46392441,0.00047945,120]
[340625102,1729549848079,-429.53607559,0.00047945,120]
[340625103,1729549848089,-500.0,0.00047945,120]
[340625104,1729549848099,-640.87511861,0.00047945,120]
[340625105,1729549848110,-500.0,0.00047945,120]
[340625106,1729549848119,-3022.02,0.00047945,120]
[340625107,1729549848129,-500.0,0.00047945,120]
[340625108,1729549848139,-2509.67,0.00047945,120]
[340625109,1729549848148,-500.0,0.00047945,120]
[340625110,1729549848158,-500.0,0.00047945,120]
[340625111,1729549848167,-500.0,0.00047945,120]
[340625112,1729549848177,-181.35736186,0.00047945,120]
[340625113,1729549848186,-500.0,0.00047945,120]
[340625114,1729549848195,-546.78,0.00047945,120]
[340625115,1729549848205,-500.0,0.00047945,120]
[340625116,1729549848214,-297.50906421,0.00047945,120]
[340625117,1729549848223,-528.27229411,0.00047945,120]
[340625118,1729549848232,-626.27,0.00047945,120]
[340625119,1729549848241,-513.23573081,0.00047945,120]
[340625120,1729549848251,-513.68642038,0.00047945,120]
[340625121,1729549848261,-150.0,0.00047947,30]
[340625122,1729549848270,-4378.3097574,0.00047955,120]
[340625123,1729549848280,-496.89091907,0.00047955,30]
[340625124,1729549848289,-229.44674857,0.00047955,30]
[340625125,1729549848299,-150.0,0.00047955,30]
[340625126,1729549848309,-150.0,0.00047955,30]
[340625127,1729549848318,-150.0,0.00047955,30]
[340625128,1729549848328,-1000.0,0.0004796,22]
[340625129,1729549848337,-1000.0,0.0004796,22]
[340625130,1729549848347,-37660.434671,0.00047967,2]
[340625131,1729549848356,-36268.8185034,0.00047967,2]
[340625132,1729549848366,-5250.1376833,0.00047967,2]
[340625133,1729549848375,-5056.1362984,0.00047967,2]
[340625134,1729549848385,-6079.5903432,0.00047967,2]
[340625135,1729549848394,-5854.9392926,0.00047967,2]
[340625136,1729549848403,-496.89091907,0.0004797,30]
[340625137,1729549848412,-229.44674857,0.0004797,30]
[340625138,1729549848422,-150.0,0.00047973,30]
[340625139,1729549848431,-200.0,0.00047973,60]
[340625140,1729549848440,-200.0,0.00047979,60]
[340625141,1729549848450,-1000.0,0.0004798,22]
[340625142,1729549848459,-1000.0,0.0004798,22]
[340625143,1729549848468,-4378.3097574,0.00047983,120]
[340625144,1729549848478,-496.89091907,0.00047985,30]
[340625145,1729549848487,-229.44674857,0.00047985,30]
[340625146,1729549848497,-150.0,0.00047989,30]
[340625147,1729549848506,-150.0,0.00047993,30]
[340625148,1729549848515,-150.0,0.00047993,30]
[340625149,1729549848524,-150.0,0.00047999,30]
[340625150,1729549848533,-496.89091907,0.00047999,30]
[340625151,1729549848543,-229.44674857,0.00047999,30]
[340625152,1729549848553,-50000.0,0.00048,48]
[340625153,1729549848562,-50000.0,0.00048,58]
[340625154,1729549848571,-50000.0,0.00048,38]
[340625155,1729549848581,-1250.0,0.00048,120]
[340625156,1729549848590,-13467.64904735,0.00048,60]
[340625157,1729549848599,-245136.41237474,0.00048,120]
[340625158,1729549848608,-1000000.0,0.00048,120]
[340625159,1729549848617,-825383.10090278,0.00048,120]
[340625160,1729549848629,-174616.89909722,0.00048,120]
[340625161,1729549848638,-152185.13452328,0.00048,120]
[340625162,1729549848650,-324484.28901508,0.00048,120]
[340625163,1729549848660,-9876.60459717,0.00048,120]
[340625164,1729549848671,-511.70455756,0.00048,120]
[340625165,1729549848682,-558.89350208,0.00048,120]
[340625166,1729549848693,-11081.9877812,0.00048,120]
[340625167,1729549848704,-15492.36436918,0.00048,120]
[340625168,1729549848720,-255.42348,0.00048,120]
[340625169,1729549848731,-1370.37733886,0.00048,120]
[340625170,1729549848742,-681.43362743,0.00048,120]
[340625171,1729549848756,-1048.582763,0.00048,120]
[340625172,1729549848768,-846.52210567,0.00048,120]
[340625173,1729549848779,-7372.9692368,0.00048,120]
[340625174,1729549848790,-542.33538895,0.00048,120]
[340625175,1729549848801,-1936.24852223,0.00048,120]
[340625176,1729549848812,-282512.66472538,0.00048,120]
[340625177,1729549848823,-1986.15335335,0.00048,120]
[340625178,1729549848953,-1399.70177098,0.000457,2]
[340625179,1729549848963,-300.89822902,0.00048,120]
[340625180,1729549848978,-547.46957672,0.00048,120]
[340625181,1729549848989,-4330.59626476,0.00048,120]
[340625182,1729549849001,-483.05719049,0.00048,120]
[340625183,1729549849012,-360.33519347,0.00048,120]
[340625184,1729549849024,-908.93959014,0.00048,120]
[340625185,1729549849035,-715.43335499,0.00048,120]
[340625186,1729549849047,-5656.37597595,0.00048,120]
[340625187,1729549849058,-13190.16168377,0.00048,120]
[340625188,1729549849070,-5555.46799405,0.00048,120]
[340625189,1729549849081,-427.149998,0.00048,120]
[340625190,1729549849092,-589.0373713,0.00048,120]
[340625191,1729549849104,-827.19049739,0.00048,120]
[340625192,1729549849115,-4132.45059965,0.00048,120]
[340625193,1729549849127,-717.9,0.00048,120]
[340625194,1729549849142,-63361.18512496,0.00048,120]
[340625195,1729549849154,-583.11631874,0.00048,120]
[340625196,1729549849189,-739.3446324,0.00048,120]
[340625197,1729549849201,-53712.6501688,0.00048,120]
[340625199,1729550515746,-160.71,0.00010959,2]
[340625226,1729551031456,-150.0,0.00010949,2]
[340625227,1729551031466,-159.26,0.00010959,2]
[340625228,1729551031476,-2187.0,0.00019,2]
[340625229,1729551031485,-300.0,0.00019725,2]
[340625230,1729551031495,-420.0,0.00021484,2]
[340625231,1729551031504,-375.0,0.00021917,2]
[340625232,1729551031514,-587.0,0.00023401,2]
[340625233,1729551031523,-3.00213134,0.00024657,2]
[340625234,1729551031536,-371.99786866,0.00024657,2]
[340625235,1729551031546,-346.0,0.00025488,2]
[340625236,1729551031556,-342.13105993,0.00032877,2]
[340625237,1729551031566,-499.99,0.00034849,2]
[340625238,1729551031576,-1234.0,0.00034849,120]
[340625239,1729551031585,-159.87,0.00035377,30]
[340625240,1729551031595,-254.48696819,0.00036822,2]
[340625241,1729551031604,-453.96635622,0.00038795,7]
[340625242,1729551031613,-159.87,0.00039799,30]
[340625243,1729551031622,-813.47641228,0.00040767,21]
[340625244,1729551031632,-392.24,0.00042114,2]
[340625245,1729551031642,-250.0,0.00042668,2]
[340625246,1729551031825,-703.24348017,0.0004274,30]
[340625247,1729551031839,-250.0,0.00043559,120]
[340625248,1729551031848,-178.12,0.00043608,120]
[340625249,1729551031858,-1000.0,0.000442,7]
[340625250,1729551031867,-59.18910632,0.00044222,30]
[340625251,1729551031880,-100.68089368,0.00044222,30]
[340625252,1729551031889,-250.0,0.00044339,120]
[340625253,1729551031899,-2087.31544036,0.00044346,2]
[340625254,1729551031911,-428.45648914,0.00044346,2]
[340625255,1729551031923,-711.01118688,0.00044346,2]
[340625256,1729551031934,-1827.91072361,0.00044346,2]
[340625257,1729551031945,-18845.30616001,0.00044346,2]
[340625258,1729551031955,-392.24,0.00044378,2]
[340625259,1729551031965,-3000.0,0.000444,2]
[340625260,1729551031975,-150.0,0.000444,4]
[340625261,1729551031984,-500.0,0.00044557,2]
[340625262,1729551031994,-156.06,0.00044609,120]
[340625263,1729551032005,-305.20132641,0.00044712,14]